fUSD/lending_fUSD_20240426
["ID","MTS","AMOUNT","RATE_DAILY","PERIOD"]
[323649127,1714146768164,-2807.16,0.00016747,2]
[323649128,1714146768174,-638.27,0.00016747,2]
[323649129,1714146768184,-3223.34,0.00016747,2]
[323649130,1714146768193,-680.69,0.00016747,2]
[323649131,1714146768204,-2296.89,0.00016747,2]
[323649132,1714146768214,-331.54,0.00016747,2]
[323649133,1714146768223,-500.0,0.00016747,2]
[323649134,1714146768232,-2368.71,0.00016747,2]
[323649135,1714146768242,-3149.73,0.00016747,2]
[323649136,1714146768251,-7711.79,0.00016747,2]
[323649137,1714146768260,-712.4,0.00016747,2]
[323649138,1714146768269,-743.13,0.00016747,2]
[323649139,1714146768279,-1361.6,0.00016747,2]
[323649140,1714146768292,-2752.21,0.00016747,2]
[323649141,1714146768301,-1414.54,0.00016747,2]
[323649142,1714146768310,-3239.13,0.00016747,2]
[323649143,1714146768319,-770.5,0.00016747,2]
[323649144,1714146768328,-1163.36,0.00016747,2]
[323649145,1714146768337,-6880.92,0.00016747,2]
[323649146,1714146768347,-525.52,0.00016747,2]
[323649147,1714146768357,-2621.73,0.00016747,2]
[323649148,1714146768367,-500.0,0.00016747,2]
[323649149,1714146768376,-2133.22,0.00016747,2]
[323649150,1714146768386,-653.66,0.00016747,2]
[323649151,1714146768395,-1077.73,0.00016747,2]
[323649152,1714146768405,-580.16,0.00016747,2]
[323649153,1714146768414,-4821.94,0.00016747,2]
[323649154,1714146768424,-2598.62,0.00016747,2]
[323649155,1714146768433,-1060.82,0.00016747,2]
[323649156,1714146768444,-584.82,0.00016747,2]
[323649157,1714146768453,-1830.64,0.00016747,2]
[323649158,1714146768463,-500.0,0.00016747,2]
[323649159,1714146768472,-500.0,0.00016747,2]
[323649160,1714146768482,-1584.6,0.00016747,2]
[323649161,1714146768492,-1347.81,0.00016747,2]
[323649162,1714146768504,-6325.77,0.00016747,2]
[323649163,1714146768514,-5879.51,0.00016747,2]
[323649164,1714146768523,-7205.06,0.00016747,2]
[323649165,1714146768535,-4293.14,0.00016747,2]
[323649166,1714146768545,-1130.16,0.00016747,2]
[323649167,1714146768555,-644.42,0.00016747,2]
[323649168,1714146768564,-4451.04,0.00016747,2]
[323649169,1714146768574,-813.86,0.00016747,2]
[323649170,1714146768584,-586.06,0.00016749,2]
[323649171,1714146768594,-551.67,0.00016749,2]
[323649172,1714146768605,-536.41,0.00016749,2]
[323649173,1714146768615,-500.02,0.00016749,2]
[323649174,1714146768625,-890.43,0.00016749,2]
[323649175,1714146768636,-899.93,0.00016749,2]
[323649176,1714146768645,-500.0,0.00016749,2]
[323649177,1714146768656,-740.2,0.00016749,2]
[323649178,1714146768666,-669.41,0.00016749,2]
[323649179,1714146768676,-714.54,0.00016749,2]
[323649180,1714146768686,-703.44,0.00016749,2]
[323649181,1714146768696,-1007.49,0.00016749,2]
[323649182,1714146768707,-673.51,0.00016749,2]
[323649183,1714146768718,-500.0,0.00016749,2]
[323649184,1714146768728,-816.79,0.00016749,2]
[323649185,1714146768737,-787.38,0.00016749,2]
[323649186,1714146768747,-976.83,0.00016749,2]
[323649187,1714146768757,-1809.25,0.00016749,2]
[323649188,1714146768767,-2201.55,0.00016749,2]
[323649189,1714146768778,-2475.02,0.00016749,2]
[323649190,1714146768792,-1021.24,0.00016749,2]
[323649191,1714146768803,-906.43,0.00016749,2]
[323649192,1714146768813,-500.0,0.00016749,2]
[323649193,1714146768823,-1734.07,0.00016749,2]
[323649194,1714146768832,-1082.39,0.00016749,2]
[323649195,1714146768843,-507.5,0.00016749,2]
[323649196,1714146768853,-500.0,0.00016749,2]
[323649197,1714146768862,-1366.4,0.00016749,2]
[323649198,1714146768873,-486.9,0.00016749,2]
[323649199,1714146768883,-1005.72,0.00016749,2]
[323649200,1714146768894,-1013.72,0.00016749,2]
[323649201,1714146768904,-988.03,0.00016749,2]
[323649202,1714146768914,-951.02,0.00016749,2]
[323649203,1714146768925,-882.88,0.00016749,2]
[323649204,1714146768936,-513.26,0.00016749,2]
[323649205,1714146768946,-1725.66,0.00016749,2]
[323649206,1714146768957,-500.0,0.00016749,2]
[323649207,1714146768968,-1527.71,0.00016749,2]
[323649208,1714146768980,-682.76,0.00016749,2]
[323649209,1714146768990,-522.14,0.00016749,2]
[323649210,1714146769001,-1626.54,0.00016749,2]
[323649211,1714146769010,-511.7,0.00016749,2]
[323649212,1714146769021,-351.78,0.00016749,2]
[323649213,1714146769030,-500.0,0.00016749,2]
[323649214,1714146769042,-387.06,0.00016749,2]
[323649215,1714146769052,-1328.17,0.00016749,2]
[323649216,1714146769062,-500.0,0.00016749,2]
[323649217,1714146769071,-551.92,0.00016749,2]
[323649218,1714146769082,-581.23,0.00016749,2]
[323649219,1714146769092,-2126.22,0.00016749,2]
[323649220,1714146769102,-1925.01,0.00016749,2]
[323649221,1714146769113,-500.0,0.00016749,2]
[323649222,1714146769124,-544.69,0.00016749,2]
[323649223,1714146769134,-1631.66,0.00016749,2]
[323649224,1714146769144,-1881.98,0.00016749,2]
[323649225,1714146769154,-499.7,0.00016749,2]
[323649226,1714146769163,-597.71,0.00016749,2]
[323649227,1714146769172,-2029.94,0.00016749,2]
[323649228,1714146769182,-1848.32,0.00016749,2]
[323649229,1714146769193,-1370.68,0.00016749,2]
[323649230,1714146769203,-1912.0,0.00016749,2]
[323649231,1714146769214,-919.44,0.00016749,2]
[323649232,1714146769223,-661.25,0.00016749,2]
[323649233,1714146769233,-1171.2,0.00016749,2]
[323649234,1714146769243,-638.29,0.00016749,2]
[323649235,1714146769253,-5559.23,0.00016749,2]
[323649236,1714146769264,-2143.51,0.00016749,2]
[323649237,1714146769274,-7686.77,0.00016749,2]
[323649238,1714146769287,-2569.43,0.00016749,2]
[323649239,1714146769297,-2739.23,0.00016749,2]
[323649240,1714146769307,-1792.37,0.00016749,2]
[323649241,1714146769317,-1653.79,0.00016749,2]
[323649242,1714146769327,-625.93,0.00016749,2]
[323649243,1714146769337,-504.13937822,0.00016749,2]
[323649244,1714146769347,-500.0,0.00016749,2]
[323649245,1714146769357,-1471.8,0.00016749,2]
[323649246,1714146769367,-1070.1,0.00016749,2]
[323649247,1714146769376,-4037.45,0.00016749,2]
[323649248,1714146769386,-2650.97,0.00016749,2]
[323649249,1714146769395,-598.19,0.00016749,2]
[323649250,1714146769404,-500.0,0.00016749,2]
[323649251,1714146769414,-4448.95,0.00016749,2]
[323649252,1714146769423,-2695.07,0.00016749,2]
[323649253,1714146769433,-8545.82,0.00016749,2]
[323649254,1714146769443,-591.25,0.00016749,2]
[323649255,1714146769452,-2042.61,0.00016749,2]
[323649256,1714146769461,-693.98,0.00016749,2]
[323649257,1714146769471,-3854.6,0.00016749,2]
[323649258,1714146769481,-1203.03,0.00016749,2]
[323649259,1714146769491,-1971.4,0.00016749,2]
[323649260,1714146769503,-540.52,0.00016749,2]
[323649261,1714146769512,-1968.53,0.00016749,2]
[323649262,1714146769522,-1494.75,0.00016749,2]
[323649263,1714146769535,-3141.48,0.00016749,2]
[323649264,1714146769544,-2509.36,0.00016749,2]
[323649265,1714146769554,-500.92,0.00016749,2]
[323649266,1714146769563,-13276.39,0.00016749,2]
[323649267,1714146769574,-8273.37,0.00016749,2]
[323649268,1714146769584,-742.66,0.00016749,2]
[323649269,1714146769593,-1606.25,0.00016749,2]
[323649270,1714146769603,-1129.91,0.00016749,2]
[323649271,1714146769614,-500.0,0.00016749,2]
[323649272,1714146769624,-500.0,0.00016749,2]
[323649273,1714146769633,-1918.48,0.00016749,2]
[323649274,1714146769643,-2088.24,0.00016749,2]
[323649275,1714146769653,-500.0,0.00016749,2]
[323649276,1714146769663,-1027.75,0.00016749,2]
[323649277,1714146769672,-1818.45,0.00016749,2]
[323649278,1714146769682,-5084.52,0.00016749,2]
[323649279,1714146769693,-1698.98,0.00016749,2]
[323649280,1714146769703,-2638.15,0.00016749,2]
[323649281,1714146769712,-1991.01,0.00016749,2]
[323649282,1714146769723,-500.0,0.00016749,2]
[323649283,1714146769733,-4070.98,0.00016749,2]
[323649284,1714146769743,-2076.98,0.00016749,2]
[323649285,1714146769754,-1015.78,0.00016749,2]
[323649286,1714146769764,-1017.72,0.00016749,2]
[323649287,1714146769774,-644.82,0.00016749,2]
[323649288,1714146769787,-500.0,0.00016749,2]
[323649289,1714146769796,-5841.05,0.00016749,2]
[323649290,1714146769806,-700.9,0.00016749,2]
[323649291,1714146769815,-2676.49,0.00016749,2]
[323649292,1714146769826,-743.73,0.00016749,2]
[323649293,1714146769836,-1119.16,0.00016749,2]
[323649294,1714146769845,-3263.92,0.00016749,2]
[323649295,1714146769855,-739.69,0.00016749,2]
[323649296,1714146769864,-1345.69,0.00016749,2]
[323649297,1714146769874,-2402.81,0.00016749,2]
[323649298,1714146769884,-558.17,0.0001675,2]
[323649299,1714146769894,-500.0,0.0001675,2]
[323649300,1714146769904,-577.08,0.0001675,2]
[323649301,1714146769914,-500.0,0.0001675,2]
[323649302,1714146769923,-703.76,0.0001675,2]
[323649303,1714146769933,-723.08,0.0001675,2]
[323649304,1714146769943,-571.51,0.0001675,2]
[323649305,1714146769953,-1700.69,0.0001675,2]
[323649306,1714146769963,-597.04,0.0001675,2]
[323649307,1714146769974,-980.11,0.0001675,2]
[323649308,1714146769984,-654.78,0.0001675,2]
[323649309,1714146769995,-665.45,0.0001675,2]
[323649310,1714146770005,-507.24,0.0001675,2]
[323649311,1714146770016,-500.0,0.0001675,2]
[323649312,1714146770026,-817.8,0.0001675,2]
[323649313,1714146770037,-530.95,0.0001675,2]
[323649314,1714146770048,-2123.887604,0.0001675,2]
[323649315,1714146770058,-2123.887604,0.0001675,2]
[323649316,1714146770069,-2123.887604,0.0001675,2]
[323649317,1714146770079,-2123.887604,0.0001675,2]
[323649318,1714146770090,-2123.887604,0.0001675,2]
[323649319,1714146770101,-2123.887604,0.0001675,2]
[323649320,1714146770110,-2123.887604,0.0001675,2]
[323649321,1714146770121,-2123.887604,0.0001675,2]
[323649322,1714146770190,-2123.887604,0.0001675,2]
[323649323,1714146770201,-2123.887604,0.0001675,2]
[323649324,1714146770211,-500.0,0.0001675,2]
[323649325,1714146770221,-2123.887604,0.0001675,2]
[323649326,1714146770231,-2123.887604,0.0001675,2]
[323649327,1714146770241,-2123.887604,0.0001675,2]
[323649328,1714146770252,-2123.887604,0.0001675,2]
[323649329,1714146770261,-1607.61741486,0.0001675,2]
[323649330,1714146770517,-984.62920614,0.0001675,2]
[323649331,1714146770527,-2261.173812,0.0001675,2]
[323649332,1714146770541,-331.072809,0.0001675,2]
[323649333,1714146770552,-2592.246621,0.0001675,2]
[323649334,1714146770563,-2592.246621,0.0001675,2]
[323649335,1714146770574,-151.0,0.0001675,2]
[323649336,1714146770584,-1934.07654391,0.0001675,2]
[323649337,1714146770596,-658.17007709,0.0001675,2]
[323649338,1714146770606,-151.0,0.0001675,2]
[323649339,1714146770616,-779.04492291,0.0001675,2]
[323649340,1714146770637,-6522.73434151,0.00012912,2]
[323649341,1714146770650,-478.76253911,0.00012912,2]
[323649342,1714146770664,-1639.33311938,0.00012912,2]
[323649343,1714146770674,-552.54650122,0.0001675,2]
[323649344,1714146770686,-988.17811479,0.0001675,2]
[323649345,1714146770707,-500.0,0.00012638,2]
[323649346,1714146770717,-272.47708208,0.0001675,2]
[323649347,1714146770729,-2592.246621,0.0001675,2]
[323649348,1714146770739,-151.0,0.0001675,2]
[323649349,1714146770750,-632.586953,0.0001675,2]
[323649350,1714146770760,-151.0,0.0001675,2]
[323649351,1714146770769,-632.586953,0.0001675,2]
[323649352,1714146770779,-632.586953,0.0001675,2]
[323649353,1714146770789,-632.586953,0.0001675,2]
[323649354,1714146770799,-2592.246621,0.0001675,2]
[323649355,1714146770809,-632.586953,0.0001675,2]
[323649356,1714146770819,-2592.246621,0.0001675,2]
[323649357,1714146770830,-151.0,0.0001675,2]
[323649358,1714146770840,-632.586953,0.0001675,2]
[323649359,1714146770849,-632.586953,0.0001675,2]
[323649360,1714146770860,-2592.246621,0.0001675,2]
[323649361,1714146770871,-151.0,0.0001675,2]
[323649362,1714146770881,-2592.246621,0.0001675,2]
[323649363,1714146770891,-2592.246621,0.0001675,2]
[323649364,1714146770900,-2592.246621,0.0001675,2]
[323649365,1714146770909,-151.0,0.0001675,2]
[323649366,1714146770919,-632.586953,0.0001675,2]
[323649367,1714146770929,-2592.246625,0.0001675,2]
[323649368,1714146770938,-632.586953,0.0001675,2]
[323649369,1714146770948,-632.586953,0.0001675,2]
[323649370,1714146770959,-632.586953,0.0001675,2]
[323649371,1714146770968,-632.586953,0.0001675,2]
[323649372,1714146770977,-632.586953,0.0001675,2]
[323649373,1714146770987,-542.25,0.0001675,2]
[323649374,1714146770997,-632.586962,0.0001675,2]
[323649375,1714146771007,-637.498523,0.0001675,2]
[323649376,1714146771017,-178.045081,0.0001675,2]
[323649377,1714146771029,-637.498523,0.0001675,2]
[323649378,1714146771039,-637.498523,0.0001675,2]
[323649379,1714146771048,-637.498523,0.0001675,2]
[323649380,1714146771058,-637.498523,0.0001675,2]
[323649381,1714146771067,-637.498523,0.0001675,2]
[323649382,1714146771076,-597.96,0.0001675,2]
[323649383,1714146771086,-637.498523,0.0001675,2]
[323649384,1714146771095,-1358.88,0.0001675,2]
[323649385,1714146771105,-637.498523,0.0001675,2]
[323649386,1714146771114,-637.498523,0.0001675,2]
[323649387,1714146771124,-637.498523,0.0001675,2]
[323649388,1714146771133,-637.498523,0.0001675,2]
[323649389,1714146771143,-637.498523,0.0001675,2]
[323649390,1714146771153,-637.498523,0.0001675,2]
[323649391,1714146771162,-637.498527,0.0001675,2]
[323649392,1714146771173,-619.11,0.0001675,2]
[323649393,1714146771182,-1059.13,0.0001675,2]
[323649394,1714146771193,-399.541959,0.0001675,2]
[323649395,1714146771203,-399.541959,0.0001675,2]
[323649396,1714146771214,-399.541959,0.0001675,2]
[323649397,1714146771223,-399.541959,0.0001675,2]
[323649398,1714146771233,-399.541959,0.0001675,2]
[323649399,1714146771242,-399.541959,0.0001675,2]
[323649400,1714146771253,-399.541959,0.0001675,2]
[323649401,1714146771263,-399.541959,0.0001675,2]
[323649402,1714146771272,-399.541959,0.0001675,2]
[323649403,1714146771282,-399.541959,0.0001675,2]
[323649404,1714146771293,-399.541959,0.0001675,2]
[323649405,1714146771303,-500.0,0.0001675,2]
[323649406,1714146771313,-399.541959,0.0001675,2]
[323649407,1714146771323,-399.541959,0.0001675,2]
[323649408,1714146771333,-399.541963,0.0001675,2]
[323649409,1714146771344,-621.09,0.0001675,2]
[323649410,1714146771353,-781.34,0.0001675,2]
[323649411,1714146771364,-318.918391,0.0001675,2]
[323649412,1714146771373,-318.918391,0.0001675,2]
[323649413,1714146771383,-318.918391,0.0001675,2]
[323649414,1714146771392,-318.918391,0.0001675,2]
[323649415,1714146771402,-318.918391,0.0001675,2]
[323649416,1714146771410,-318.918391,0.0001675,2]
[323649417,1714146771420,-318.918391,0.0001675,2]
[323649418,1714146771439,-3661.332938,0.0001675,2]
[323649419,1714146771449,-3661.332938,0.0001675,2]
[323649420,1714146771459,-3661.332938,0.0001675,2]
[323649421,1714146771469,-603.94,0.0001675,2]
[323649422,1714146771479,-3661.332938,0.0001675,2]
[323649423,1714146771489,-318.918391,0.0001675,2]
[323649424,1714146771503,-3661.332938,0.0001675,2]
[323649425,1714146771513,-830.456012,0.0001675,2]
[323649426,1714146771524,-318.918391,0.0001675,2]
[323649427,1714146771535,-3661.332938,0.0001675,2]
[323649428,1714146771545,-830.456012,0.0001675,2]
[323649429,1714146771555,-318.918391,0.0001675,2]
[323649430,1714146771565,-3661.332938,0.0001675,2]
[323649431,1714146771576,-830.456012,0.0001675,2]
[323649432,1714146771585,-318.918391,0.0001675,2]
[323649433,1714146771596,-830.456012,0.0001675,2]
[323649434,1714146771606,-830.456012,0.0001675,2]
[323649435,1714146771616,-830.456012,0.0001675,2]
[323649436,1714146771625,-830.456012,0.0001675,2]
[323649437,1714146771635,-318.918391,0.0001675,2]
[323649438,1714146771646,-3661.332938,0.0001675,2]
[323649439,1714146771656,-1788.83944966,0.0001675,2]
[323649440,1714146771674,-587.75367793,0.0001675,2]
[323649441,1714146771686,-1284.73981041,0.0001675,2]
[323649442,1714146771695,-2622.61366959,0.0001675,2]
[323649443,1714146771710,-1038.71926841,0.0001675,2]
[323649444,1714146771719,-243.015856,0.0001675,2]
[323649445,1714146771730,-830.456012,0.0001675,2]
[323649446,1714146771740,-830.456012,0.0001675,2]
[323649447,1714146771751,-233.17449727,0.0001675,2]
[323649448,1714146771763,-9.84135873,0.0001675,2]
[323649449,1714146771773,-318.918391,0.0001675,2]
[323649450,1714146771784,-645.05622739,0.0001675,2]
[323649451,1714146771797,-185.39978461,0.0001675,2]
[323649452,1714146771807,-220.84966037,0.0001675,2]
[323649453,1714146771820,-22.16619563,0.0001675,2]
[323649454,1714146771830,-318.918397,0.0001675,2]
[323649455,1714146771840,-399.74851693,0.0001675,2]
[323649456,1714146771851,-430.70749507,0.0001675,2]
[323649457,1714146771862,-243.015856,0.0001675,2]
[323649458,1714146771872,-1326.06017853,0.0001675,2]
[323649459,1714146771885,-476.2010242,0.0001675,2]
[323649460,1714146771946,-211.615917,0.000155,2]
[323649461,1714146771956,-111.26061565,0.0001675,2]
[323649462,1714146771969,-368.9719517,0.0001675,2]
[323649463,1714146771985,-393.92163929,0.0001675,2]
[323649464,1714146771998,-329.79753817,0.0001675,2]
[323649465,1714146772524,-500.0,0.00011541,2]
[323649466,1714146772535,-1423.13549627,0.00011542,2]
[323649467,1714146772544,-500.0,0.00011542,2]
[323649468,1714146772554,-500.0,0.00011543,2]
[323649469,1714146772563,-500.0,0.00011544,2]
[323649470,1714146772575,-500.0,0.00011815,2]
[323649471,1714146772586,-500.0,0.00011817,2]
[323649472,1714146772595,-500.0,0.00011818,2]
[323649473,1714146772605,-500.0,0.00012089,2]
[323649474,1714146772615,-500.0,0.00012091,2]
[323649475,1714146772626,-500.0,0.00012092,2]
[323649476,1714146772636,-500.0,0.00012365,2]
[323649477,1714146772645,-556.37,0.00012912,2]
[323649478,1714146772656,-1055.76,0.00013151,2]
[323649479,1714146772666,-8640.83,0.00013186,2]
[323649480,1714146772676,-8640.83,0.0001346,2]
[323649481,1714146772685,-564.334591,0.00013699,2]
[323649482,1714146772695,-564.334591,0.00013699,2]
[323649483,1714146772705,-8640.83,0.00013734,2]
[323649484,1714146772716,-8640.83,0.00014008,2]
[323649485,1714146772726,-564.334591,0.00014008,2]
[323649486,1714146772737,-8640.83,0.00014282,2]
[323649487,1714146772748,-564.334591,0.00015008,2]
[323649488,1714146772758,-564.334591,0.0001538,2]
[323649489,1714146772768,-211.615917,0.000155,2]
[323649490,1714146772778,-211.615917,0.000155,2]
[323649491,1714146772788,-211.615923,0.000155,2]
[323649492,1714146772798,-655.11999046,0.0001675,2]
[323649493,1714146772808,-243.015856,0.0001675,2]
[323649494,1714146772817,-830.456012,0.0001675,2]
[323649495,1714146772827,-830.456012,0.0001675,2]
[323649496,1714146772837,-243.015856,0.0001675,2]
[323649497,1714146772846,-3661.332938,0.0001675,2]
[323649498,1714146772855,-243.015856,0.0001675,2]
[323649499,1714146772864,-3661.332938,0.0001675,2]
[323649500,1714146772875,-830.456021,0.0001675,2]
[323649501,1714146772884,-3661.332946,0.0001675,2]
[323649502,1714146772894,-243.015856,0.0001675,2]
[323649503,1714146772903,-243.015856,0.0001675,2]
[323649504,1714146772913,-243.015856,0.0001675,2]
[323649505,1714146772923,-243.015856,0.0001675,2]
[323649506,1714146772933,-243.015856,0.0001675,2]
[323649507,1714146772943,-243.015856,0.0001675,2]
[323649508,1714146772952,-243.015859,0.0001675,2]
[323649509,1714146772962,-151.0,0.0001675,2]
[323649510,1714146772971,-151.0,0.0001675,2]
[323649511,1714146772981,-151.0,0.0001675,2]
[323649512,1714146772990,-151.0,0.0001675,2]
[323649513,1714146772999,-151.0,0.0001675,2]
[323649514,1714146773009,-151.0,0.0001675,2]
[323649515,1714146773017,-151.0,0.0001675,2]
[323649516,1714146773027,-2203.32,0.0001675,2]
[323649517,1714146773036,-741.55,0.0001675,2]
[323649518,1714146773046,-151.0,0.0001675,2]
[323649519,1714146773055,-264.772481,0.0001675,2]
[323649520,1714146773064,-500.0,0.0001675,2]
[323649521,1714146773073,-707.05,0.0001675,2]
[323649522,1714146773082,-1197.27,0.0001675,2]
[323649523,1714146773092,-525.11,0.0001675,2]
[323649524,1714146773102,-1151.01,0.0001675,2]
[323649525,1714146773111,-1089.37,0.0001675,2]
[323649526,1714146773122,-535.73,0.0001675,2]
[323649527,1714146773132,-1314.57,0.0001675,2]
[323649528,1714146773142,-500.0,0.0001675,2]
[323649529,1714146773151,-1247.81,0.0001675,2]
[323649530,1714146773160,-731.33,0.0001675,2]
[323649531,1714146773169,-609.72,0.0001675,2]
[323649532,1714146773179,-713.5,0.0001675,2]
[323649533,1714146773189,-577.85,0.0001675,2]
[323649534,1714146773199,-500.0,0.0001675,2]
[323649535,1714146773209,-1867.18,0.0001675,2]
[323649536,1714146773218,-1355.9,0.0001675,2]
[323649537,1714146773227,-638.8,0.0001675,2]
[323649538,1714146773237,-603.07,0.0001675,2]
[323649539,1714146773247,-1301.29,0.0001675,2]
[323649540,1714146773256,-1375.84,0.0001675,2]
[323649541,1714146773265,-678.19,0.0001675,2]
[323649542,1714146773275,-500.0,0.0001675,2]
[323649543,1714146773285,-724.11,0.0001675,2]
[323649544,1714146773297,-594.9,0.0001675,2]
[323649545,1714146773307,-616.05,0.0001675,2]
[323649546,1714146773317,-500.0,0.0001675,2]
[323649547,1714146773327,-1741.91,0.0001675,2]
[323649548,1714146773338,-1642.19,0.0001675,2]
[323649549,1714146773348,-645.35,0.0001675,2]
[323649550,1714146773359,-877.55,0.0001675,2]
[323649551,1714146773373,-1878.46,0.0001675,2]
[323649552,1714146773383,-2626.11,0.0001675,2]
[323649553,1714146773393,-800.34,0.0001675,2]
[323649554,1714146773403,-1000.0,0.00016764,2]
[323649555,1714146773414,-388.32032274,0.00016774,2]
[323649556,1714146773424,-152.0,0.000168,24]
[323649557,1714146773434,-215.60368067,0.000168,5]
[323649558,1714146773443,-166.46797124,0.00016802,2]
[323649559,1714146773454,-153.67518868,0.00016816,2]
[323649560,1714146773463,-159.44275273,0.00016821,2]
[323649561,1714146773472,-160.0,0.00016829,2]
[323649562,1714146773481,-150.7423774,0.00016839,2]
[323649563,1714146773491,-150.7423774,0.00016848,2]
[323649564,1714146773504,-151.0,0.00016855,2]
[323649565,1714146773514,-524.75,0.00016855,2]
[323649566,1714146773523,-500.0,0.00016855,2]
[323649567,1714146773533,-500.0,0.00016855,2]
[323649568,1714146773545,-912.86,0.00016855,2]
[323649569,1714146773553,-614.45,0.00016855,2]
[323649570,1714146773562,-831.87,0.00016855,2]
[323649571,1714146773572,-1074.39,0.00016855,2]
[323649572,1714146773582,-532.82,0.00016855,2]
[323649573,1714146773592,-773.66,0.00016855,2]
[323649574,1714146773601,-838.97,0.00016855,2]
[323649575,1714146773611,-671.04,0.00016855,2]
[323649576,1714146773621,-724.04,0.00016855,2]
[323649577,1714146773631,-659.6,0.00016855,2]
[323649578,1714146773640,-543.48,0.00016855,2]
[323649579,1714146773649,-605.67,0.00016855,2]
[323649580,1714146773658,-804.0,0.00016855,2]
[323649581,1714146773668,-500.0,0.00016855,2]
[323649582,1714146773678,-512.65,0.00016855,2]
[323649583,1714146773687,-500.0,0.00016855,2]
[323649584,1714146773697,-500.0,0.00016855,2]
[323649585,1714146773707,-733.06,0.00016855,2]
[323649586,1714146773716,-584.14,0.00016855,2]
[323649587,1714146773726,-229.70155931,0.00016855,2]
[323649588,1714146773735,-668.64,0.00016855,2]
[323649589,1714146773744,-535.33,0.00016855,2]
[323649590,1714146773754,-500.0,0.00016855,2]
[323649591,1714146773763,-549.83,0.00016855,2]
[323649592,1714146773772,-500.0,0.0001686,7]
[323649593,1714146773781,-1000.0,0.00016873,2]
[323649594,1714146773792,-167.0,0.00016876,2]
[323649595,1714146773802,-5015.37970179,0.00016888,2]
[323649596,1714146773812,-158.37439134,0.00016902,2]
[323649597,1714146773821,-388.32032274,0.00016978,2]
[323649598,1714146773830,-1000.0,0.00016981,2]
[323649599,1714146773839,-2000.0,0.00016986,2]
[323649600,1714146773848,-2076.72684174,0.00017,2]
[323649601,1714146773857,-1000.0,0.00017,3]
[323649602,1714146773866,-1000.0,0.00017,3]
[323649603,1714146773876,-1530.0,0.00017,4]
[323649604,1714146773885,-2900.0,0.00017,3]
[323649605,1714146773894,-150.0,0.00017,2]
[323649606,1714146773904,-150.0,0.00017,2]
[323649607,1714146773916,-500.0,0.00017021,2]
[323649608,1714146773925,-574.07890094,0.00017021,2]
[323649609,1714146773934,-493.71,0.00017021,2]
[323649610,1714146773944,-12541.59,0.00017021,2]
[323649611,1714146773953,-3067.93,0.00017021,2]
[323649612,1714146773962,-532.8,0.00017021,2]
[323649613,1714146773971,-683.29,0.00017021,2]
[323649614,1714146773981,-1060.15,0.00017021,2]
[323649615,1714146773990,-4294.42,0.00017021,2]
[323649616,1714146773999,-539.52,0.00017021,2]
[323649617,1714146774008,-2839.5,0.00017021,2]
[323649618,1714146774150,-594.61,0.00017021,2]
[323649619,1714146774159,-786.04,0.00017021,2]
[323649620,1714146774169,-633.46,0.00017021,2]
[323649621,1714146774179,-2454.05,0.00017021,2]
[323649622,1714146774188,-556.65,0.00017021,2]
[323649623,1714146774197,-783.76,0.00017021,2]
[323649624,1714146774207,-603.38,0.00017021,2]
[323649625,1714146774216,-1769.72,0.00017021,2]
[323649626,1714146774225,-541.56,0.00017021,2]